bitfinex/quotes_BTCUSD_20230108
["timestamp","ask_amount","ask_price","bid_price","bid_amount"]
[1673140463777,1.40816388,16947.0,16946.0,0.031]
[1673140464000,1.85006272,16947.0,16946.0,0.031]
[1673140464221,1.24218872,16947.0,16946.0,0.031]
[1673140465906,0.80028988,16947.0,16946.0,0.031]
[1673140466201,1.24218872,16947.0,16946.0,0.031]
[1673140466453,0.80028988,16947.0,16946.0,0.031]
[1673140467025,0.97667378,16947.0,16946.0,0.031]
[1673140467798,1.24213921,16947.0,16946.0,0.031]
[1673140468547,0.97667378,16947.0,16946.0,0.031]
[1673140469829,1.24213584,16947.0,16946.0,0.031]
[1673140470493,0.800237,16947.0,16946.0,0.031]
[1673140473046,1.408111,16947.0,16946.0,0.031]
[1673140473269,1.58454778,16947.0,16946.0,0.031]
[1673140474131,0.97667378,16947.0,16946.0,0.031]
[1673140474653,1.24214234,16947.0,16946.0,0.031]
[1673140475168,0.8002435,16947.0,16946.0,0.031]
[1673140475943,0.8002435,16947.0,16946.0,0.57647015]
[1673140476199,0.59570531,16947.0,16946.0,0.57647015]
[1673140476446,0.59570531,16947.0,16946.0,1.18434415]
[1673140476689,0.59570531,16947.0,16946.0,0.57647015]
[1673140477662,0.9494608,16947.0,16946.0,0.57647015]
[1673140478276,0.77247413,16947.0,16946.0,0.57647015]
[1673140484050,0.77247413,16947.0,16946.0,0.57636358]
[1673140488311,0.76747413,16947.0,16946.0,0.57636358]
[1673140491655,0.94390441,16947.0,16946.0,0.57636358]
[1673140491913,0.76750603,16947.0,16946.0,0.57636358]
[1673140492722,1.20940487,16947.0,16946.0,0.57636358]
[1673140492954,0.76750603,16947.0,16946.0,0.57636358]
[1673140493955,1.20940487,16947.0,16946.0,0.57636358]
[1673140494242,0.76750603,16947.0,16946.0,0.57636358]
[1673140501421,0.76750603,16947.0,16946.0,0.03089343]
[1673140501726,0.94390441,16947.0,16946.0,0.03089343]
[1673140501927,0.93711041,16947.0,16946.0,0.03089343]
[1673140511618,1.20258785,16947.0,16946.0,0.03089343]
[1673140512865,0.93711041,16947.0,16946.0,0.03089343]
[1673140514102,1.20259665,16947.0,16946.0,0.03089343]
[1673140514365,1.20259752,16947.0,16946.0,0.03089343]
[1673140514627,1.20259827,16947.0,16946.0,0.03089343]
[1673140515139,0.76069943,16947.0,16946.0,0.03089343]
[1673140516631,0.76069943,16947.0,16946.0,0.63876743]
[1673140516889,0.76069943,16947.0,16946.0,0.03089343]
[1673140520153,1.20259827,16947.0,16946.0,0.03089343]
[1673140520889,0.93711041,16947.0,16946.0,0.03089343]
[1673140522476,0.93711041,16947.0,16946.0,0.03080559]
[1673140527659,1.54498441,16947.0,16946.0,0.03080559]
[1673140529929,1.19122892,16947.0,16946.0,0.03080559]
[1673140533206,0.58335492,16947.0,16946.0,0.03080559]
[1673140533450,1.19122892,16947.0,16946.0,0.03080559]
[1673140533711,0.58335492,16947.0,16946.0,0.03080559]
[1673140534457,0.9373138,16947.0,16946.0,0.03080559]
[1673140536967,1.5451878,16947.0,16946.0,0.03080559]
[1673140537725,0.9373138,16947.0,16946.0,0.03080559]
[1673140538740,1.5451878,16947.0,16946.0,0.03080559]
[1673140539987,0.9373138,16947.0,16946.0,0.03080559]
[1673140541285,0.58335492,16947.0,16946.0,0.03080559]
[1673140541797,1.19122892,16947.0,16946.0,0.03080559]
[1673140542360,0.58335492,16947.0,16946.0,0.03080559]
[1673140542618,0.14145608,16947.0,16946.0,0.03080559]
[1673140543417,1.19172436,16947.0,16946.0,0.03080559]
[1673140543700,1.19171969,16947.0,16946.0,0.03080559]
[1673140543970,0.74933008,16947.0,16946.0,0.03080559]
[1673140545037,1.19172057,16947.0,16946.0,0.03080559]
[1673140545701,1.19172057,16947.0,16946.0,0.03069711]
[1673140547475,1.54559669,16947.0,16946.0,0.03069711]
[1673140548057,1.19172057,16947.0,16946.0,0.03069711]
[1673140548303,1.54558986,16947.0,16946.0,0.03069711]
[1673140548551,1.54558746,16947.0,16946.0,0.03069711]
[1673140548841,1.19172057,16947.0,16946.0,0.03069711]
[1673140553183,0.93770817,16947.0,16946.0,0.03069711]
[1673140554560,1.19172057,16947.0,16946.0,0.03069711]
[1673140555063,1.54560321,16947.0,16946.0,0.03069711]
[1673140555579,1.19172057,16947.0,16946.0,0.03069711]
[1673140557571,1.54560815,16947.0,16946.0,0.03069711]
[1673140558574,0.93773415,16947.0,16946.0,0.03069711]
[1673140561855,1.54560815,16947.0,16946.0,0.03069711]
[1673140562322,0.93773415,16947.0,16946.0,0.03069711]
[1673140563836,0.98128527,16947.0,16946.0,0.03069711]
[1673140568305,0.98128527,16947.0,16946.0,0.68061144]
[1673140568567,1.20322464,16947.0,16946.0,1.13765302]
[1673140568826,0.76083415,16947.0,16946.0,1.13765302]
[1673140569073,0.76083415,16947.0,16946.0,1.74552702]
[1673140569353,0.76083415,16947.0,16946.0,1.13765302]
[1673140570143,0.76083415,16947.0,16946.0,1.74552702]
[1673140570834,0.76083415,16947.0,16946.0,1.13765302]
[1673140571853,0.76083415,16947.0,16946.0,1.74552702]
[1673140572365,0.76083415,16947.0,16946.0,1.13765302]
[1673140573144,0.76083415,16947.0,16946.0,0.68061144]
[1673140573377,1.20322464,16947.0,16946.0,0.68061144]
[1673140573625,0.76083415,16947.0,16946.0,0.68061144]
[1673140573881,1.20322464,16947.0,16946.0,0.68061144]
[1673140575135,0.93773415,16947.0,16946.0,0.68061144]
[1673140575387,1.20315536,16947.0,16946.0,0.68061144]
[1673140575885,0.93773415,16947.0,16946.0,0.68061144]
[1673140576098,1.20314821,16947.0,16946.0,1.1377949]
[1673140576370,0.93773415,16947.0,16946.0,0.68061144]
[1673140576847,1.20314455,16947.0,16946.0,0.68061144]
[1673140578314,0.93773415,16947.0,16946.0,0.68061144]
[1673140578760,1.20314262,16947.0,16946.0,1.13795291]
[1673140578991,1.20314262,16947.0,16946.0,0.68061144]
[1673140580634,0.76075213,16947.0,16946.0,0.68061144]
[1673140582173,0.76075213,16947.0,16946.0,1.137996]
[1673140583215,1.20314262,16947.0,16946.0,1.137996]
[1673140583473,1.20314262,16947.0,16946.0,0.68061144]
[1673140583943,0.93773415,16947.0,16946.0,0.68061144]
[1673140584973,0.98127137,16947.0,16946.0,0.68061144]
[1673140585421,0.93773415,16947.0,16946.0,0.68061144]
[1673140586168,0.98127243,16947.0,16946.0,0.68061144]
[1673140586910,0.93773415,16947.0,16946.0,1.1379461]
[1673140587201,0.76072475,16947.0,16946.0,1.1379461]
[1673140587988,0.76072475,16947.0,16946.0,1.7458201]
[1673140588261,0.76072475,16947.0,16946.0,1.1379461]
[1673140589460,0.76072475,16947.0,16946.0,1.7458201]
[1673140590193,0.76072475,16947.0,16946.0,1.1379461]
[1673140591141,0.76072475,16947.0,16946.0,1.7458201]
[1673140591389,0.76072475,16947.0,16946.0,1.1379461]
[1673140592564,0.76072475,16947.0,16946.0,1.7458201]
[1673140592800,0.76063951,16947.0,16946.0,1.7458201]
[1673140593322,0.76063951,16947.0,16946.0,1.09556152]
[1673140593568,0.76063951,16947.0,16946.0,0.48768752]
[1673140594341,0.76063951,16947.0,16946.0,1.09556152]
[1673140594590,0.76063951,16947.0,16946.0,0.48768752]
[1673140595363,0.93764891,16947.0,16946.0,0.03069711]
[1673140595940,0.981188,16947.0,16946.0,0.03069711]
[1673140596365,0.93764891,16947.0,16946.0,0.03069711]
[1673140596640,0.98118786,16947.0,16946.0,0.03069711]
[1673140600576,0.62730028,16947.0,16946.0,0.03069711]
[1673140605669,0.98113458,16947.0,16946.0,0.03069711]
[1673140608885,0.97613458,16947.0,16946.0,0.03069711]
[1673140609105,1.0134874,16947.0,16946.0,0.03069711]
[1673140612739,0.87811656,16947.0,16946.0,0.03069711]
[1673140624157,1.0123997,16947.0,16946.0,0.03069711]
[1673140626185,0.96886075,16947.0,16946.0,0.03069711]
[1673140626658,1.01239791,16947.0,16946.0,0.03069711]
[1673140627333,0.96886075,16947.0,16946.0,0.03069711]
[1673140627907,0.93088047,16947.0,16946.0,0.03069711]
[1673140628441,0.93088047,16947.0,16946.0,0.48600127]
[1673140628691,1.19624647,16947.0,16946.0,0.48600127]
[1673140628951,0.79083626,16947.0,16946.0,0.48600127]
[1673140629200,0.79083626,16947.0,16946.0,1.09387527]
[1673140629718,0.79083626,16947.0,16946.0,0.48600127]
[1673140629953,0.52547026,16947.0,16946.0,0.48600127]
[1673140630176,0.52547026,16947.0,16946.0,0.03069711]
[1673140630649,0.52547026,16947.0,16946.0,0.4860441]
[1673140631282,0.52547026,16947.0,16946.0,0.48604411]
[1673140631801,0.52547026,16947.0,16946.0,0.03069711]
[1673140635110,0.96785912,16947.0,16946.0,0.03069711]
[1673140639590,0.17163596,16947.0,16946.0,0.03069711]
[1673140639841,0.77950996,16947.0,16946.0,0.03069711]
[1673140640110,1.2218631,16947.0,16946.0,0.03069711]
[1673140640350,0.77950996,16947.0,16946.0,0.03069711]
[1673140641382,1.22183118,16947.0,16946.0,0.03069711]
[1673140641593,0.61395718,16947.0,16946.0,0.03069711]
[1673140643297,1.22183118,16947.0,16946.0,0.03069711]
[1673140643821,0.77950996,16947.0,16946.0,0.03069711]
[1673140644273,0.17163596,16947.0,16946.0,0.03069711]
[1673140645781,0.61402079,16947.0,16946.0,0.03069711]
[1673140647037,1.22189479,16947.0,16946.0,0.03069711]
[1673140649078,1.04885279,16947.0,16946.0,0.03069711]
[1673140649339,0.61402079,16947.0,16946.0,0.03069711]
[1673140649838,0.61402079,16947.0,16946.0,0.03058534]
[1673140650112,0.91402079,16947.0,16946.0,0.03058534]
[1673140653008,0.61402079,16947.0,16946.0,0.03058534]
[1673140653728,0.96785081,16947.0,16946.0,0.03058534]
[1673140659228,1.57572481,16947.0,16946.0,0.03058534]
[1673140660754,0.96785081,16947.0,16946.0,0.03058534]
[1673140661274,1.57572481,16947.0,16946.0,0.03058534]
[1673140665061,0.96785081,16947.0,16946.0,0.03058534]
[1673140665296,1.57572481,16947.0,16946.0,0.03058534]
[1673140666107,1.22189479,16947.0,16946.0,0.03058534]
[1673140670054,0.77950996,16947.0,16946.0,0.03058534]
[1673140670285,0.17163596,16947.0,16946.0,0.03058534]
[1673140671275,0.47163596,16947.0,16946.0,0.03058534]
[1673140672020,1.07950996,16947.0,16946.0,0.03058534]
[1673140674454,1.07950996,16947.0,16946.0,0.03050635]
[1673140675217,0.47163596,16947.0,16946.0,0.03050635]
[1673140675731,1.07950996,16947.0,16946.0,0.03050635]
[1673140676186,1.66958396,16947.0,16946.0,0.03050635]
[1673140687646,2.66198585,16947.0,16946.0,0.03050635]
[1673140687899,1.66958396,16947.0,16946.0,0.03050635]
[1673140688663,2.13343664,16947.0,16946.0,0.03050635]
[1673140688884,2.66193809,16947.0,16946.0,0.03050635]
[1673140689953,2.13343664,16947.0,16946.0,0.03050635]
[1673140690462,2.66193809,16947.0,16946.0,0.03050635]
[1673140690718,2.13343664,16947.0,16946.0,0.03050635]
[1673140690992,2.66193809,16947.0,16946.0,0.03050635]
[1673140691249,2.13343664,16947.0,16946.0,0.03050635]
[1673140691539,1.66958396,16947.0,16946.0,0.03050635]
[1673140695650,1.66958396,16947.0,16946.0,0.03044521]
[1673140697309,1.69806929,16947.0,16946.0,0.03044521]
[1673140700707,2.22657074,16947.0,16946.0,0.03044521]
[1673140702280,2.69037553,16947.0,16946.0,0.03044521]
[1673140702537,3.28044953,16947.0,16946.0,0.03044521]
[1673140706739,2.81664474,16947.0,16946.0,0.03044521]
[1673140708608,3.28044944,16947.0,16946.0,0.03044521]
[1673140708857,3.28044942,16947.0,16946.0,0.03044521]
[1673140709108,2.81664474,16947.0,16946.0,0.03044521]
[1673140711250,3.28030578,16947.0,16946.0,0.03044521]
[1673140712778,3.42924372,16947.0,16946.0,0.03044521]
[1673140713292,3.27530578,16947.0,16946.0,0.03044521]
[1673140715116,2.81164474,16947.0,16946.0,0.03044521]
[1673140719315,2.98484474,16947.0,16946.0,0.03044521]
[1673140721050,3.44860149,16947.0,16946.0,0.03044521]
[1673140721615,3.4485536,16947.0,16946.0,0.03044521]
[1673140722880,3.44840992,16947.0,16946.0,0.03044521]
[1673140723127,2.98484474,16947.0,16946.0,0.03044521]
[1673140725381,3.4485057,16947.0,16946.0,0.03044521]
[1673140726597,2.98484474,16947.0,16946.0,0.03044521]
[1673140735614,2.98484474,16947.0,16946.0,0.030341]
[1673140737523,2.37697074,16947.0,16946.0,0.030341]
[1673140739268,2.98484474,16947.0,16946.0,0.030341]
[1673140739784,2.37697074,16947.0,16946.0,0.030341]
[1673140743569,2.98484474,16947.0,16946.0,0.030341]
[1673140744069,2.37697074,16947.0,16946.0,0.030341]
[1673140754485,2.98484474,16947.0,16946.0,0.030341]
[1673140755639,2.37697074,16947.0,16946.0,0.030341]
[1673140756642,2.98484474,16947.0,16946.0,0.030341]
[1673140760680,2.98484474,16947.0,16946.0,0.03025122]
[1673140760914,2.37697074,16947.0,16946.0,0.03025122]
[1673140761168,1.78689674,16947.0,16946.0,0.03025122]
[1673140761673,1.78679248,16947.0,16946.0,0.03025122]
[1673140779430,1.61359248,16947.0,16946.0,0.03025122]
[1673140782473,1.61359248,16947.0,16946.0,0.03013784]
[1673140782963,2.22146648,16947.0,16946.0,0.03013784]
[1673140783734,1.61359248,16947.0,16946.0,0.03013784]
[1673140787075,2.22146648,16947.0,16946.0,0.03013784]
[1673140787999,1.61359248,16947.0,16946.0,0.03013784]
[1673140790988,2.22146648,16947.0,16946.0,0.03013784]
[1673140791622,1.61359248,16947.0,16946.0,0.03013784]
[1673140794153,2.22146648,16947.0,16946.0,0.03013784]
[1673140794880,2.28303903,16947.0,16946.0,0.03013784]
[1673140795134,1.67516503,16947.0,16946.0,0.03013784]
[1673140795387,2.20649626,16947.0,16946.0,0.03013784]
[1673140796347,1.67516503,16947.0,16946.0,0.03013784]
[1673140797719,2.20644725,16947.0,16946.0,0.03013784]
[1673140798719,1.67516503,16947.0,16946.0,0.03013784]
[1673140799469,1.96114515,16947.0,16946.0,0.03013784]
[1673140799724,4.19977196,16947.0,16946.0,0.03013784]
[1673140800848,4.22632671,16947.0,16946.0,0.03013784]
[1673140801110,3.91379184,16947.0,16946.0,0.03013784]
[1673140801366,3.93713418,16947.0,16946.0,0.03013784]
[1673140801621,4.38534843,16947.0,16946.0,0.03013784]
[1673140801888,4.48901302,16947.0,16946.0,0.03013784]
[1673140802144,4.46567068,16947.0,16946.0,0.03013784]
[1673140802391,4.84161331,16947.0,16946.0,0.03013784]
[1673140803182,0.3,16946.0,16943.0,0.49369269]
[1673140803389,0.79617634,16944.0,16943.0,0.02979225]
[1673140803645,1.40405034,16944.0,16943.0,0.02979225]
[1673140803899,0.79617634,16944.0,16942.0,1.00880477]
[1673140804142,0.44231005,16943.0,16942.0,1.03858329]
[1673140804387,0.44231005,16943.0,16942.0,1.0384886]
[1673140805886,0.44331005,16943.0,16942.0,1.0704886]
[1673140807651,0.44331005,16943.0,16942.0,1.6607376]
[1673140807906,0.17792402,16943.0,16942.0,1.6607376]
[1673140810453,0.44331005,16943.0,16942.0,1.6607376]
[1673140811992,0.47219076,16943.0,16942.0,0.60658816]
[1673140812238,0.82604691,16943.0,16942.0,0.60658816]
[1673140812498,0.47219076,16943.0,16942.0,0.60658816]
[1673140812768,0.82604691,16943.0,16942.0,0.60658816]
[1673140813023,0.64912289,16943.0,16942.0,0.60658816]
[1673140813291,0.82602781,16943.0,16942.0,0.60658816]
[1673140813549,0.64912289,16943.0,16942.0,0.06177852]
[1673140814077,1.25699689,16943.0,16942.0,0.06177852]
[1673140814332,0.64912289,16943.0,16942.0,0.06177852]
[1673140816383,1.25699689,16943.0,16942.0,0.06177852]
[1673140816642,1.08395489,16943.0,16942.0,0.06177852]
[1673140817195,1.09144308,16943.0,16942.0,0.06177852]
[1673140817408,0.82605705,16943.0,16942.0,0.06177852]
[1673140817680,2.02414505,16943.0,16942.0,0.06177852]
[1673140819488,1.41627105,16943.0,16942.0,0.06177852]
[1673140819992,2.02414505,16943.0,16942.0,0.06177852]
[1673140820494,1.41627105,16943.0,16942.0,0.06177852]
[1673140821510,1.23913687,16943.0,16942.0,0.06177852]
[1673140822543,1.68145706,16943.0,16942.0,0.06177852]
[1673140822807,2.02414505,16943.0,16942.0,0.06177852]
[1673140825931,2.02414505,16943.0,16942.0,0.06168]
[1673140828457,2.02406375,16943.0,16942.0,0.06168]
[1673140829732,2.02377431,16943.0,16942.0,0.06168]
[1673140830762,1.6702076,16943.0,16942.0,0.06168]
[1673140831005,2.02376966,16943.0,16942.0,0.06168]
[1673140831256,1.6702076,16943.0,16942.0,0.06168]
[1673140831499,2.0237469,16943.0,16942.0,0.06168]
[1673140831752,1.6702076,16943.0,16942.0,0.06168]
[1673140833300,1.81810141,16943.0,16942.0,0.06168]
[1673140833555,2.26005284,16943.0,16942.0,0.032]
[1673140833825,1.81810141,16943.0,16942.0,0.032]
[1673140834563,2.26011908,16943.0,16942.0,0.032]
[1673140834816,1.81810141,16943.0,16942.0,0.032]
[1673140835348,2.26007713,16943.0,16942.0,0.032]
[1673140835855,1.81810141,16943.0,16942.0,0.032]
[1673140836103,2.26015336,16943.0,16942.0,0.032]
[1673140836439,1.81810141,16943.0,16942.0,0.032]
[1673140839304,1.99230141,16943.0,16942.0,0.032]
[1673140849145,1.99230141,16943.0,16942.0,0.03192724]
[1673140851247,2.52308563,16943.0,16942.0,0.03192724]
[1673140851492,2.97794281,16943.0,16942.0,0.03192724]
[1673140855500,2.97776741,16943.0,16942.0,0.03192724]
[1673140855781,2.52308563,16943.0,16942.0,0.03192724]
[1673140856032,2.97795493,16943.0,16942.0,0.03192724]
[1673140856531,2.52308563,16943.0,16942.0,0.03192724]
[1673140857794,2.97794897,16943.0,16942.0,0.03192724]
[1673140858275,2.52308563,16943.0,16942.0,0.03192724]
[1673140861826,2.51877363,16943.0,16942.0,0.03192724]
[1673140865097,1.91089963,16943.0,16942.0,0.03192724]
[1673140865340,1.38011541,16943.0,16942.0,0.03192724]
[1673140865832,1.46098702,16944.0,16942.0,1.15481431]
[1673140865833,1.28738702,16944.0,16942.0,1.15481431]
[1673140866087,0.69717902,16944.0,16943.0,1.07177444]
[1673140866340,0.9631951,16944.0,16943.0,1.07177444]
[1673140866590,0.60905736,16944.0,16943.0,1.07177444]
[1673140866851,0.96317679,16944.0,16943.0,1.07177444]
[1673140867101,0.99917679,16944.0,16943.0,1.07277444]
[1673140867607,0.99917679,16944.0,16943.0,1.74712124]
[1673140867865,1.26477535,16944.0,16943.0,2.51193524]
[1673140868126,0.64506552,16944.0,16943.0,3.10214924]
[1673140868439,0.2023948,16944.0,16943.0,3.10214924]
[1673140868638,0.2023948,16944.0,16943.0,2.51193524]
[1673140869155,0.2023948,16944.0,16943.0,3.21193524]
[1673140871768,0.2023948,16944.0,16943.0,3.80214924]
[1673140873292,0.2023948,16944.0,16943.0,3.80295889]
[1673140883871,0.2023948,16944.0,16943.0,3.80214924]
[1673140885177,0.2023948,16944.0,16943.0,3.10214924]
[1673140886192,0.2023948,16944.0,16943.0,3.80214924]
[1673140887688,0.2023948,16944.0,16943.0,3.80295889]
[1673140892273,0.2023948,16944.0,16943.0,3.10295889]
[1673140893258,0.2023948,16944.0,16943.0,3.80214924]
[1673140896966,0.20199438,16944.0,16943.0,3.80214924]
[1673140901733,0.20199438,16944.0,16943.0,3.62754924]
[1673140901976,0.20199438,16944.0,16943.0,3.01967524]
[1673140902925,0.20199438,16944.0,16943.0,3.62754924]
[1673140904726,0.37906654,16944.0,16943.0,3.01967524]
[1673140905971,0.6446651,16944.0,16943.0,3.01967524]
[1673140908060,0.99878453,16944.0,16943.0,3.01967524]
[1673140908314,0.6446651,16944.0,16943.0,3.01967524]
[1673140912560,0.6446651,16944.0,16943.0,2.31967524]
[1673140913355,0.6446651,16944.0,16943.0,3.01967524]
[1673140914122,0.6446651,16944.0,16943.0,3.62754924]
[1673140916587,0.37906654,16944.0,16943.0,3.80466127]
[1673140921673,0.20199438,16944.0,16943.0,3.80466127]
[1673140921929,0.37906654,16944.0,16943.0,3.80466127]
[1673140922693,0.20199438,16944.0,16943.0,4.07032938]
[1673140922946,0.37906654,16944.0,16943.0,3.80466127]
[1673140923979,0.20199438,16944.0,16943.0,3.80466127]
[1673140924247,0.37906654,16944.0,16943.0,3.80466127]
[1673140925023,0.37906654,16944.0,16943.0,3.10466127]
[1673140925996,0.37906654,16944.0,16943.0,3.80466127]
[1673140931993,0.37906654,16944.0,16943.0,3.10466127]
[1673140932268,0.37906654,16944.0,16943.0,2.49678727]
[1673140932783,0.37906654,16944.0,16943.0,3.10466127]
[1673140933036,0.37906654,16944.0,16943.0,3.80466127]
[1673140935534,0.37906654,16944.0,16943.0,3.62754924]
[1673140935781,0.37906654,16944.0,16943.0,3.80466127]
[1673140937352,0.20199438,16944.0,16943.0,3.80466127]
[1673140938833,0.20199438,16944.0,16943.0,3.10466127]
[1673140940133,0.20199438,16944.0,16943.0,3.80466127]
[1673140941732,0.37906654,16944.0,16943.0,3.80466127]
[1673140951334,0.37906654,16944.0,16943.0,3.10466127]
[1673140951799,0.20199438,16944.0,16943.0,3.10466127]
[1673140952053,0.20199438,16944.0,16943.0,4.24247905]
[1673140952559,0.20199438,16944.0,16943.0,4.94247813]
[1673140952825,0.37906654,16944.0,16943.0,4.07032938]
[1673140953076,0.20199438,16944.0,16943.0,4.07032938]
[1673140953328,0.37906654,16944.0,16943.0,4.07032938]
[1673140953583,0.20199438,16944.0,16943.0,4.07032938]
[1673140954122,0.37906654,16944.0,16943.0,4.07032938]
[1673140955382,0.20199438,16944.0,16943.0,4.94247999]
[1673140959391,0.20199438,16944.0,16943.0,5.70995673]
[1673140962280,0.20199438,16944.0,16943.0,5.5326588]
[1673140963033,0.20199438,16944.0,16943.0,5.88703357]
[1673140963532,0.20199438,16944.0,16943.0,5.88702357]
[1673140963799,0.20199438,16944.0,16943.0,5.5326488]
[1673140964049,0.20199438,16944.0,16943.0,5.88702357]
[1673140964305,0.20199438,16944.0,16943.0,4.9424348]
[1673140964563,0.20199438,16944.0,16943.0,5.5326488]
[1673140966337,0.20199438,16944.0,16943.0,4.9424348]
[1673140966839,0.20199438,16944.0,16943.0,4.07028419]
[1673140967093,0.20199438,16944.0,16943.0,3.19674208]
[1673140968628,0.20199438,16944.0,16943.0,3.80461608]
[1673140970381,0.20199438,16944.0,16943.0,3.80542573]
[1673140970632,0.20199438,16944.0,16943.0,4.07109384]
[1673140971004,0.20199438,16944.0,16943.0,3.80542573]
[1673140974273,0.20199438,16944.0,16943.0,4.07109384]
[1673140974831,0.20199438,16944.0,16943.0,4.94324244]
[1673140975589,0.20199438,16944.0,16943.0,4.07109384]
[1673140975844,0.20199438,16944.0,16943.0,4.94324266]
[1673140976105,0.20199438,16944.0,16943.0,4.07109384]
[1673140976362,0.20199438,16944.0,16943.0,3.46321984]
[1673140977124,0.20199438,16944.0,16943.0,3.19755173]
[1673140977875,0.20199438,16944.0,16943.0,3.80542573]
[1673140978869,0.20199438,16944.0,16943.0,4.07109384]
[1673140979600,0.20199438,16944.0,16943.0,3.10542573]
[1673140979851,0.20199438,16944.0,16943.0,2.49755173]
[1673140980368,0.20199438,16944.0,16943.0,2.76321984]
[1673140980623,0.20199438,16944.0,16943.0,3.80542573]
[1673140981716,0.20199438,16944.0,16943.0,4.07109384]
[1673140982221,0.20199438,16944.0,16943.0,3.80542573]
[1673140983212,0.20199438,16944.0,16943.0,4.07109384]
[1673140983778,0.20199438,16944.0,16943.0,3.80542573]
[1673140986565,0.20199438,16944.0,16943.0,3.10542573]
[1673140986829,0.20199438,16944.0,16943.0,2.49755173]
[1673140987085,0.20199438,16944.0,16943.0,2.76321984]
[1673140987336,0.20199438,16944.0,16943.0,3.37109384]
[1673140987645,0.20199438,16944.0,16943.0,3.10542573]
[1673140987872,0.20199438,16944.0,16943.0,3.80542573]
[1673140988126,0.20199438,16944.0,16943.0,4.07109384]
[1673140988385,0.20199438,16944.0,16943.0,4.94324272]
[1673140989132,0.20199438,16944.0,16943.0,4.07109384]
[1673140989383,0.20199438,16944.0,16943.0,4.94324302]
[1673140989847,0.20199438,16944.0,16943.0,4.07109384]
[1673140993739,0.20199438,16944.0,16943.0,3.37109384]
[1673140994529,0.20199438,16944.0,16943.0,4.07109384]
[1673140996754,0.20199438,16944.0,16943.0,4.94324527]
[1673140997267,0.20199438,16944.0,16943.0,4.07109384]
[1673140997989,0.20199438,16944.0,16943.0,4.94324506]
[1673140998268,0.20199438,16944.0,16943.0,4.94324529]
[1673141000604,0.20199438,16944.0,16943.0,4.24324529]
[1673141001545,0.20199438,16944.0,16943.0,4.94324529]
[1673141007213,0.37906654,16944.0,16943.0,4.94324529]
[1673141007717,0.37906654,16944.0,16943.0,4.24324529]
[1673141008678,0.37906654,16944.0,16943.0,4.94324529]
[1673141009441,0.20199438,16944.0,16943.0,4.94324529]
[1673141009681,0.37906654,16944.0,16943.0,4.94324529]
[1673141014861,0.37906654,16944.0,16943.0,4.24324529]
[1673141015667,0.37906654,16944.0,16943.0,4.94324529]
[1673141017040,0.20199438,16944.0,16943.0,4.94324529]
[1673141019677,0.20199438,16944.0,16943.0,4.94243564]
[1673141021682,0.37906654,16944.0,16943.0,4.24243564]
[1673141021943,0.37906654,16944.0,16943.0,3.63456164]
[1673141022712,0.37906654,16944.0,16943.0,4.94243564]
[1673141023215,0.37906654,16944.0,16943.0,4.94324529]
[1673141024296,0.20199438,16944.0,16943.0,4.94324529]
[1673141024844,0.20199438,16944.0,16943.0,5.12055322]
[1673141025300,0.20199438,16944.0,16943.0,5.297653]
[1673141025549,0.20199438,16944.0,16943.0,4.94327823]
[1673141026303,0.20199438,16944.0,16943.0,4.89327823]
[1673141026526,0.20199438,16944.0,16943.0,4.47937779]
[1673141028842,0.20199438,16944.0,16943.0,4.83375256]
[1673141030312,0.20199438,16944.0,16943.0,4.65665278]
[1673141030820,0.20199438,16944.0,16943.0,4.83372776]
[1673141031658,0.20199438,16944.0,16943.0,4.65665278]
[1673141031908,0.20199438,16944.0,16943.0,3.95665278]
[1673141032396,0.20199438,16944.0,16943.0,4.72393644]
[1673141032679,0.20199438,16944.0,16943.0,4.54686678]
[1673141032915,0.20199438,16944.0,16943.0,5.24686678]
[1673141033673,0.20199438,16944.0,16943.0,5.06875137]
[1673141034399,0.20199438,16944.0,16943.0,4.46087737]
[1673141034651,0.37906654,16944.0,16943.0,3.87066337]
[1673141035145,0.37906654,16944.0,16943.0,2.99840759]
[1673141035391,0.37906654,16944.0,16943.0,2.73354913]
[1673141035634,0.37906654,16944.0,16943.0,2.73273948]
[1673141036134,0.37906654,16944.0,16943.0,3.34061348]
[1673141036386,0.37906654,16944.0,16943.0,3.60628159]
[1673141036888,0.37906654,16944.0,16943.0,2.73273948]
[1673141038151,0.37906654,16944.0,16943.0,3.34061348]
[1673141039162,0.37906654,16944.0,16943.0,3.60628159]
[1673141039438,0.37906654,16944.0,16943.0,3.34061348]
[1673141039694,0.37906654,16944.0,16943.0,2.99840759]
[1673141040469,0.37906654,16944.0,16943.0,3.34061348]
[1673141040727,0.37906654,16944.0,16943.0,2.73273948]
[1673141040981,0.20199438,16944.0,16943.0,3.87055584]
[1673141041229,0.20199438,16944.0,16943.0,4.47842984]
[1673141041485,0.20199438,16944.0,16943.0,5.06864384]
[1673141042694,0.20199438,16944.0,16943.0,4.47842984]
[1673141045736,0.20199438,16944.0,16943.0,4.46982707]
[1673141045993,0.40739925,16944.0,16943.0,3.33201071]
[1673141046253,0.40739925,16944.0,16943.0,2.72413671]
[1673141047003,0.40739925,16944.0,16943.0,3.33201071]
[1673141047764,0.37906654,16944.0,16943.0,3.33201071]
[1673141048025,0.6446651,16944.0,16943.0,1.880428]
[1673141052815,0.37906654,16944.0,16943.0,1.880428]
[1673141053088,0.37906654,16944.0,16943.0,1.180428]
[1673141054880,0.37906654,16944.0,16943.0,1.788302]
[1673141055398,0.37906654,16944.0,16943.0,1.180428]
[1673141056452,0.37906654,16944.0,16943.0,1.788302]
[1673141057168,0.37906654,16944.0,16943.0,1.180428]
[1673141057672,0.37906654,16944.0,16943.0,1.788302]
[1673141058410,0.37906654,16944.0,16943.0,1.180428]
[1673141059176,0.37906654,16944.0,16943.0,1.788302]
[1673141059710,0.37906654,16944.0,16943.0,1.180428]
[1673141059981,0.37906654,16944.0,16943.0,1.880428]
[1673141061808,0.37906654,16944.0,16943.0,2.488302]
[1673141065342,0.37906654,16944.0,16943.0,1.880428]
[1673141065863,0.6446651,16944.0,16943.0,1.880428]
[1673141066101,0.37906654,16944.0,16943.0,1.180428]
[1673141067101,0.6446651,16944.0,16943.0,1.180428]
[1673141068531,0.37906654,16944.0,16943.0,1.180428]
[1673141071963,0.6446651,16944.0,16943.0,1.180428]
[1673141072987,0.37906654,16944.0,16943.0,1.180428]
[1673141073240,0.37906654,16944.0,16943.0,1.788302]
[1673141073488,0.37906654,16944.0,16943.0,2.05749701]
[1673141073752,0.37906654,16944.0,16943.0,2.66537101]
[1673141074765,0.20199438,16944.0,16943.0,2.66537101]
[1673141075016,0.20199438,16944.0,16943.0,2.05749701]
[1673141075543,0.20199438,16944.0,16943.0,2.66537101]
[1673141078066,0.20199438,16944.0,16943.0,4.31424869]
[1673141078314,0.20199438,16944.0,16943.0,5.62634699]
[1673141079063,0.20199438,16944.0,16943.0,5.98072176]
[1673141079312,0.20199438,16944.0,16943.0,5.62634699]
[1673141079313,0.16599438,16944.0,16943.0,5.62634699]
[1673141079569,0.16999438,16944.0,16943.0,5.76334699]
[1673141081875,0.16999438,16944.0,16943.0,5.76415664]